bitfinex/quotes_SOLUSD_20250902
["timestamp","ask_amount","ask_price","bid_price","bid_amount"]
[1756773930111,26.0,197.36,197.31,0.68]
[1756773930312,3.40460239,197.35,197.31,0.68]
[1756773930523,3.40460239,197.36,197.31,0.68]
[1756773930723,4.12460239,197.36,197.31,0.68]
[1756773930925,0.72,197.35,197.29,13.59559401]
[1756773931125,3.40460239,197.36,197.31,0.68]
[1756773931322,4.12460239,197.36,197.31,0.68]
[1756773931523,5.06713959,197.35,197.31,0.68]
[1756773932834,5.06713959,197.35,197.31,58.68]
[1756773933246,0.72,197.34,197.31,58.0]
[1756773933414,4.11788734,197.34,197.31,58.0]
[1756773933720,70.8269346,197.36,197.32,0.68]
[1756773933925,3.39810722,197.35,197.32,0.68]
[1756773934515,3.39810722,197.35,197.31,58.0]
[1756773934729,26.0,197.34,197.33,0.68]
[1756773934936,26.0,197.34,197.31,58.68]
[1756773935117,26.0,197.34,197.32,0.67]
[1756773936632,15.904227,197.4,197.33,0.67]
[1756773936818,43.15547145,197.39,197.33,0.67]
[1756773937145,39.76,197.39,197.33,0.67]
[1756773937447,44.8262637,197.39,197.33,5.73757345]
[1756773937627,44.8262637,197.39,197.34,0.67]
[1756773937941,44.8262637,197.39,197.35,0.67]
[1756773938242,5.0662637,197.39,197.35,0.67]
[1756773938748,44.8262637,197.39,197.36,0.67]
[1756773939534,44.8262637,197.39,197.33,18.66311758]
[1756773939717,44.8262637,197.39,197.34,0.67]
[1756773939925,0.67,197.38,197.34,0.67]
[1756773940234,0.67,197.37,197.32,14.26559401]
[1756773940446,0.67,197.37,197.33,0.67]
[1756773940746,45.4962637,197.39,197.34,58.67]
[1756773941124,0.67,197.38,197.34,58.0]
[1756773941325,0.67,197.37,197.34,58.0]
[1756773941639,26.0,197.36,197.29,13.59559401]
[1756773941824,43.15456244,197.35,197.29,14.26559401]
[1756773942025,5.06739637,197.34,197.29,0.67]
[1756773942227,5.73739637,197.34,197.29,0.67]
[1756773942421,0.67,197.34,197.29,0.67]
[1756773942826,39.76,197.33,197.3,0.67]
[1756773943929,39.76,197.33,197.31,0.67]
[1756773944551,39.76,197.33,197.31,58.67]
[1756773944755,5.06642492,197.38,197.31,58.12]
[1756773945041,43.15120455,197.37,197.32,0.67]
[1756773945243,40.43,197.37,197.32,0.67]
[1756773945539,0.67,197.36,197.32,0.67]
[1756773946433,5.73709977,197.36,197.31,58.12]
[1756773946746,5.73709977,197.36,197.31,58.79]
[1756773947846,5.06709977,197.36,197.32,0.67]
[1756773948051,26.0,197.38,197.34,13.59559401]
[1756773948229,0.03,197.39,197.35,4.35720533]
[1756773948429,0.03,197.39,197.36,13.59559401]
[1756773948643,0.03,197.39,197.36,14.26559401]
[1756773948862,0.03,197.39,197.37,0.67]
[1756773949654,0.03,197.39,197.36,13.59559401]
[1756773949831,0.03,197.39,197.35,13.59559401]
[1756773950032,0.7,197.39,197.35,13.59559401]
[1756773950541,5.06636943,197.38,197.34,0.67]
[1756773950956,0.67,197.37,197.31,0.79]
[1756773951550,0.67,197.37,197.31,58.79]
[1756773951857,0.67,197.36,197.31,58.12]
[1756773952041,0.67,197.35,197.31,58.12]
[1756773952229,40.43,197.34,197.31,58.12]
[1756773952656,44.82760012,197.34,197.31,58.12]
[1756773952953,39.76,197.37,197.32,14.26559401]
[1756773953164,39.76,197.37,197.33,0.67]
[1756773953449,39.76,197.37,197.34,0.67]
[1756773953636,39.76,197.37,197.32,14.26559401]
[1756773953840,39.76,197.37,197.33,0.67]
[1756773954033,39.76,197.37,197.34,0.67]
[1756773954442,44.82663661,197.37,197.34,0.67]
[1756773954626,44.82663661,197.37,197.32,14.26559401]
[1756773954948,31.76635329,197.39,197.33,0.67]
[1756773955142,39.76,197.37,197.33,0.67]
[1756773957259,44.82667755,197.37,197.33,0.67]
[1756773957434,45.49667755,197.37,197.33,0.67]
[1756773957637,0.67,197.36,197.32,13.59559401]
[1756773957846,0.67,197.36,197.31,58.12]
[1756773958162,0.67,197.36,197.31,58.79]
[1756773958358,39.76,197.37,197.31,63.18811058]
[1756773958563,39.76,197.36,197.32,0.67]
[1756773958884,39.76,197.37,197.32,0.67]
[1756773959061,26.03,197.39,197.32,0.67]
[1756773959240,43.15517784,197.38,197.32,0.67]
[1756773959450,44.82636943,197.38,197.32,19.3333412]
[1756773959638,44.82636943,197.38,197.33,0.67]
[1756773959838,44.82636943,197.38,197.34,0.67]
[1756773960055,3.39658543,197.37,197.34,0.67]
[1756773960662,3.39658543,197.37,197.35,4.35720533]
[1756773960843,0.03,197.39,197.36,4.35720533]
[1756773961250,0.03,197.39,197.37,0.67]
[1756773961552,0.03,197.39,197.35,0.67]
[1756773961743,0.03,197.39,197.37,0.67]
[1756773962165,0.03,197.39,197.35,3.68720533]
[1756773962549,0.03,197.39,197.36,0.67]
[1756773963851,0.03,197.39,197.37,58.0]
[1756773965635,0.03,197.39,197.37,58.68]
[1756773965958,0.03,197.39,197.37,58.0]
[1756773966164,0.03,197.39,197.38,17.96279934]
[1756773966385,0.03,197.39,197.38,18.46943628]
[1756773967266,0.03,197.39,197.38,23.53580571]
[1756773967460,0.03,197.39,197.38,63.27580571]
[1756773969868,0.03,197.39,197.38,59.58860038]
[1756773970071,0.03,197.39,197.38,63.27580571]
[1756773970457,0.03,197.39,197.38,121.27580571]
[1756773970659,0.03,197.39,197.38,120.76916877]
[1756773971868,0.03,197.41,197.4,39.59559401]
[1756773972075,0.03,197.41,197.4,167.51659028]
[1756773972251,0.03,197.41,197.4,167.69000467]
[1756773972650,0.03,197.48,197.45,13.59559401]
[1756773972958,0.03,197.48,197.47,17.28279934]
[1756773973473,0.03,197.48,197.47,17.96279934]
[1756773973673,0.03,197.48,197.47,14.27559401]
[1756773973974,0.03,197.48,197.47,23.0268597]
[1756773975055,0.03,197.48,197.47,81.0268597]
[1756773975248,0.03,197.48,197.47,75.28279934]
[1756773976081,0.03,197.48,197.47,49.0268597]
[1756773976395,0.03,197.51,197.5,26.0]
[1756773976580,0.1,197.59,197.54,13.59559401]
[1756773976884,0.1,197.59,197.58,39.59559401]
[1756773977051,0.1,197.59,197.58,43.28279934]
[1756773977249,0.1,197.59,197.58,83.68279934]
[1756773977674,0.1,197.59,197.58,88.74404035]
[1756773977877,0.1,197.59,197.58,89.25016445]
[1756773979167,0.1,197.59,197.58,147.25016445]
[1756773979372,0.1,197.59,197.58,146.74404035]
[1756773981799,0.03,197.6,197.59,18.65657887]
[1756773982081,0.03,197.6,197.59,47.21708801]
[1756773982983,0.03,197.62,197.61,39.59559401]
[1756773983157,0.03,197.62,197.61,103.4888466]
[1756773983357,0.03,197.62,197.61,103.66279934]
[1756773983874,0.03,197.67,197.66,13.59559401]
[1756773984074,0.03,197.67,197.66,57.48871859]
[1756773984273,0.03,197.67,197.66,58.16871859]
[1756773984474,0.03,197.67,197.66,56.50842126]
[1756773984679,0.03,197.67,197.66,20.49562659]
[1756773984873,0.03,197.67,197.66,118.19562659]
[1756773985068,0.03,197.67,197.66,117.68970734]
[1756773985386,0.03,197.67,197.66,122.74889989]
[1756773986882,0.03,197.67,197.66,127.89314388]
[1756773987994,0.11223969,197.67,197.66,127.89314388]
[1756773988379,0.11223969,197.67,197.66,88.19314388]
[1756773988587,0.11223969,197.67,197.66,128.37906313]
[1756773988905,0.11223969,197.67,197.66,127.87314388]
[1756773989461,0.11223969,197.67,197.66,88.19314388]
[1756773989666,0.11223969,197.67,197.66,128.37906313]
[1756773989867,0.11223969,197.67,197.66,127.87314388]
[1756773990091,0.11223969,197.67,197.66,208.17314388]
[1756773993502,0.11223969,197.67,197.66,168.49314388]
[1756773993829,0.11223969,197.67,197.66,208.17314388]
[1756773997795,0.11223969,197.67,197.66,127.87314388]
[1756773998410,1e-08,197.67,197.66,147.87314388]
[1756773999907,1e-08,197.67,197.66,87.51314388]
[1756774000097,1e-08,197.67,197.66,127.67906313]
[1756774000306,1e-08,197.67,197.66,127.17314388]
[1756774001702,1e-08,197.67,197.66,127.86314388]
[1756774002116,1e-08,197.68,197.66,208.16314388]
[1756774002323,0.1,197.72,197.7,13.59559401]
[1756774002495,0.1,197.72,197.71,57.44859065]
[1756774002701,1e-08,197.72,197.71,60.16457365]
[1756774002900,1e-08,197.72,197.71,80.16457365]
[1756774004015,1e-08,197.72,197.71,85.22248675]
[1756774004401,1e-08,197.73,197.72,13.59559401]
[1756774004618,1e-08,197.73,197.72,17.97279934]
[1756774004822,1e-08,197.78,197.75,26.0]
[1756774005030,1e-08,197.78,197.77,17.28279934]
[1756774005213,1e-08,197.78,197.77,114.94279934]
[1756774005412,1e-08,197.78,197.77,116.96837234]
[1756774006504,1e-08,197.78,197.77,122.02475096]
[1756774010121,0.72000001,197.78,197.77,122.00475096]
[1756774010325,0.72000001,197.78,197.77,119.97917796]
[1756774010513,0.72000001,197.78,197.77,122.00495596]
[1756774011028,0.72000001,197.78,197.77,82.36495596]
[1756774011325,0.72000001,197.78,197.77,118.31775063]
[1756774011820,0.72000001,197.78,197.77,78.67775063]
[1756774012018,0.72000001,197.78,197.77,71.59559401]
[1756774012209,0.72000001,197.78,197.77,111.23559401]
[1756774015026,0.72000001,197.78,197.77,71.59559401]
[1756774015209,0.72000001,197.78,197.77,111.23559401]
[1756774020412,0.72000001,197.78,197.77,111.21559401]
[1756774020643,0.72000001,197.78,197.77,58.0]
[1756774021536,1e-08,197.78,197.77,71.59559401]
[1756774021710,1e-08,197.78,197.77,111.21559401]
[1756774022823,0.72000001,197.78,197.77,58.0]
[1756774023016,0.72000001,197.78,197.74,13.59559401]
[1756774023332,0.72,197.77,197.74,13.59559401]
[1756774023509,0.72,197.76,197.74,13.59559401]
[1756774023709,0.72,197.75,197.74,13.59559401]
[1756774025636,1e-08,197.78,197.74,13.59559401]
[1756774025814,0.67,197.77,197.73,0.12]
[1756774026018,4.06853559,197.77,197.75,13.59559401]
[1756774026216,0.67,197.76,197.75,13.59559401]
[1756774026642,5.7266343,197.76,197.73,0.12]
[1756774026832,3.39853559,197.75,197.73,0.12]
[1756774027436,0.67,197.74,197.73,0.12]
[1756774029524,0.67,197.74,197.73,58.12]
[1756774029842,0.67,197.77,197.74,13.59559401]
[1756774030041,0.67,197.76,197.74,13.59559401]
[1756774030243,0.67,197.75,197.73,58.12]
[1756774030426,0.67,197.75,197.74,13.59559401]
[1756774033351,0.67,197.75,197.73,0.12]
[1756774033727,1e-08,197.78,197.74,0.72]
[1756774033975,3.40352945,197.78,197.74,0.72]
[1756774034156,3.40352945,197.78,197.75,14.31559401]
[1756774034555,3.40352945,197.78,197.75,13.59559401]
[1756774034757,1e-08,197.78,197.77,13.59559401]
[1756774035060,3.40352945,197.78,197.77,13.59559401]
[1756774035364,0.67000001,197.78,197.77,13.59559401]
[1756774035563,3.40352945,197.78,197.77,13.59559401]
[1756774035733,1e-08,197.78,197.77,13.59559401]
[1756774036046,3.40352945,197.78,197.77,13.59559401]
[1756774036244,1e-08,197.78,197.77,13.59559401]
[1756774036456,3.40352945,197.78,197.77,71.59559401]
[1756774036753,1e-08,197.78,197.77,71.59559401]
[1756774036939,3.40352945,197.78,197.77,71.59559401]
[1756774037256,1e-08,197.78,197.77,71.59559401]
[1756774037558,3.40352945,197.78,197.77,71.59559401]
[1756774037745,1e-08,197.78,197.77,71.59559401]
[1756774037947,3.40352945,197.78,197.77,77.37197263]
[1756774038156,1e-08,197.78,197.77,72.31559401]
[1756774038454,1e-08,197.78,197.77,116.99197263]
[1756774038758,1e-08,197.78,197.77,111.21559401]
[1756774040767,1e-08,197.78,197.77,71.59559401]
[1756774041438,0.67000001,197.78,197.77,71.59559401]
[1756774041637,3.40352945,197.78,197.77,71.59559401]
[1756774041845,0.67000001,197.78,197.77,71.59559401]
[1756774042651,4.07352945,197.78,197.77,71.59559401]
[1756774043771,3.40352945,197.78,197.77,77.37197263]
[1756774043944,1e-08,197.78,197.77,116.99197263]
[1756774045847,1e-08,197.78,197.77,120.67917796]
[1756774046048,1e-08,197.78,197.77,62.67917796]
[1756774046289,1e-08,197.78,197.77,65.21018282]
[1756774046446,1e-08,197.78,197.77,21.90297749]
[1756774046765,1e-08,197.78,197.77,84.27197263]
[1756774046947,1e-08,197.78,197.77,84.99197263]
[1756774047445,1e-08,197.78,197.77,19.37197263]
[1756774047647,0.67000001,197.78,197.77,13.59559401]
[1756774047974,0.67000001,197.78,197.76,13.59559401]
[1756774049063,0.67000001,197.78,197.77,71.59559401]
[1756774049261,1e-08,197.78,197.77,71.59559401]
[1756774051165,1e-08,197.78,197.77,72.31559401]
[1756774051474,1e-08,197.78,197.77,111.91559401]
[1756774051664,1e-08,197.78,197.77,116.97197263]
[1756774053174,1e-08,197.78,197.77,62.65917796]
[1756774053554,0.03,197.82,197.81,39.59559401]
[1756774053753,1e-08,197.82,197.81,82.88279934]
[1756774054059,1e-08,197.82,197.81,107.66532787]
[1756774054441,1e-08,197.82,197.81,83.60279934]
[1756774054858,1e-08,197.82,197.81,88.65815548]
[1756774055046,1e-08,197.82,197.81,89.16369109]
[1756774055460,1e-08,197.82,197.81,45.87648576]
[1756774055675,1e-08,197.82,197.81,88.65815548]
[1756774055877,1e-08,197.82,197.81,51.08321548]
[1756774056071,1e-08,197.82,197.81,84.97095015]
[1756774056254,1e-08,197.82,197.81,146.65815548]
[1756774057256,1e-08,197.82,197.81,76.65095015]
[1756774057454,1e-08,197.82,197.81,116.25095015]
[1756774057657,1e-08,197.82,197.81,142.25095015]
[1756774057971,1e-08,197.82,197.81,142.92095015]
[1756774058391,1e-08,197.82,197.81,142.25095015]
[1756774058851,1e-08,197.82,197.81,111.19559401]
[1756774059052,0.68000001,197.82,197.81,111.19559401]
[1756774059250,1e-08,197.82,197.81,111.19559401]
[1756774059470,1e-08,197.82,197.81,116.25095015]
[1756774059872,0.68000001,197.82,197.81,71.59559401]
[1756774060674,1e-08,197.82,197.81,77.32095015]
[1756774061069,1e-08,197.82,197.81,71.59559401]
[1756774061268,0.68000001,197.82,197.81,71.59559401]
[1756774061459,0.68000001,197.82,197.81,58.0]
[1756774063391,0.68000001,197.82,197.81,71.59559401]
[1756774063688,1e-08,197.82,197.81,116.94095015]
[1756774063888,1e-08,197.82,197.81,120.62815548]
[1756774064188,1e-08,197.82,197.81,116.94095015]
[1756774065086,1e-08,197.82,197.81,116.96095015]
[1756774066391,1e-08,197.82,197.81,120.64815548]
[1756774068401,1e-08,197.82,197.81,118.98590815]
[1756774068595,1e-08,197.82,197.81,202.97311348]
[1756774071300,1e-08,197.82,197.81,163.33311348]
[1756774071517,1e-08,197.82,197.81,200.92815548]
[1756774071715,1e-08,197.82,197.81,201.04815548]
[1756774072004,1e-08,197.82,197.81,80.45815548]
[1756774072205,0.68000001,197.82,197.81,76.77095015]
[1756774072405,0.68000001,197.82,197.81,116.41095015]
[1756774072582,0.68000001,197.82,197.81,111.35559401]
[1756774072779,0.68000001,197.82,197.81,71.71559401]
[1756774072983,0.68000001,197.82,197.81,0.12]
[1756774073494,5.7351006,197.82,197.81,0.12]
[1756774074703,0.68000001,197.82,197.81,0.12]
[1756774075004,5.7351006,197.82,197.81,0.12]
[1756774076213,0.68000001,197.82,197.81,0.12]
[1756774077085,5.7351006,197.82,197.81,0.12]
[1756774077314,0.68000001,197.82,197.81,0.12]
[1756774079403,5.7351006,197.82,197.81,0.12]
[1756774079797,0.68000001,197.82,197.81,0.12]
[1756774080208,5.7351006,197.82,197.81,0.12]
[1756774080516,0.68000001,197.82,197.81,0.12]
[1756774081117,1e-08,197.82,197.81,0.12]
[1756774081305,1e-08,197.82,197.81,19.44095015]
[1756774082097,1e-08,197.82,197.81,77.44095015]
[1756774082298,1e-08,197.82,197.81,71.71559401]
[1756774084317,0.68000001,197.82,197.81,71.71559401]
[1756774084815,1e-08,197.82,197.81,71.71559401]
[1756774085413,0.72000001,197.82,197.81,58.12]
[1756774085603,0.72000001,197.82,197.81,0.12]
[1756774086720,5.7751006,197.82,197.81,0.12]
[1756774086925,9.17020593,197.82,197.81,0.12]
[1756774087698,9.17020593,197.82,197.81,0.05999995]
[1756774088109,26.0,197.8,197.79,1e-08]
[1756774088418,34.45071705,197.8,197.79,1e-08]
[1756774088604,35.17071705,197.8,197.79,1e-08]
[1756774088811,74.89071705,197.8,197.79,1e-08]
[1756774089408,74.89071705,197.8,197.77,1e-08]
[1756774089607,3.39510533,197.79,197.77,1e-08]
[1756774090225,0.72,197.78,197.77,1e-08]
[1756774090438,5.77612296,197.78,197.77,1e-08]
[1756774090729,9.17122829,197.78,197.77,1e-08]
[1756774090938,13.24045961,197.78,197.77,1e-08]
[1756774091117,26.0,197.75,197.73,0.12]
[1756774091303,43.11510533,197.74,197.73,0.12]
[1756774091502,43.83510533,197.74,197.73,0.12]
[1756774091720,45.86262933,197.74,197.73,0.12]
[1756774092517,11.19977507,197.74,197.73,0.12]
[1756774092810,50.93977507,197.74,197.73,0.12]
[1756774093013,48.91225107,197.74,197.73,0.12]
[1756774094129,43.11510533,197.74,197.73,0.12]
[1756774094421,39.72,197.74,197.73,0.12]
[1756774094830,39.76,197.74,197.73,0.12]
[1756774095006,40.48,197.74,197.73,0.12]
[1756774097109,45.53714574,197.74,197.73,0.12]
[1756774097726,42.74474753,197.74,197.73,0.12]
[1756774099831,39.74,197.74,197.73,0.12]
[1756774100720,31.0569284,197.75,197.73,0.12]
[1756774101031,39.72,197.74,197.73,0.12]
[1756774101232,31.7769284,197.75,197.73,0.12]
[1756774101428,26.0,197.75,197.73,0.12]
[1756774101728,39.7,197.75,197.73,0.12]
[1756774101903,39.7,197.75,197.73,0.82]
[1756774102300,5.05683571,197.76,197.73,0.82]
[1756774102531,39.72,197.75,197.73,0.82]
[1756774102706,0.72,197.81,197.74,0.7]
[1756774103026,39.72,197.8,197.74,0.7]
[1756774103207,5.05535614,197.81,197.75,13.59559401]
[1756774103403,39.72,197.8,197.76,0.7]
[1756774103606,39.72,197.8,197.77,0.7]
[1756774106137,39.72,197.8,197.77,58.7]
[1756774106434,1e-08,197.82,197.79,13.59559401]
[1756774106610,1e-08,197.82,197.8,0.7]
[1756774106811,1e-08,197.82,197.81,13.59559401]
[1756774107208,1e-08,197.82,197.81,0.7]
[1756774108434,1e-08,197.82,197.81,5.75535614]
[1756774110219,1e-08,197.82,197.81,19.35095015]
[1756774111618,1e-08,197.82,197.81,14.29559401]
[1756774112157,1e-08,197.82,197.81,13.59559401]
[1756774112510,1e-08,197.82,197.81,71.59559401]
[1756774113555,0.72000001,197.82,197.81,58.0]
[1756774113741,0.72000001,197.82,197.75,13.59559401]
[1756774113925,1e-08,197.82,197.74,0.7]
[1756774114233,0.72,197.81,197.75,13.59559401]
[1756774114822,5.05561172,197.8,197.75,13.59559401]
[1756774115147,0.72,197.79,197.73,13.71559401]
[1756774116355,44.73561172,197.8,197.73,0.8]
[1756774116763,44.73561172,197.8,197.75,58.0]
[1756774117048,45.45561172,197.8,197.75,58.0]
[1756774117252,0.72,197.79,197.75,58.0]
[1756774119365,1e-08,197.82,197.76,14.27559401]
[1756774119530,1e-08,197.82,197.78,13.59559401]
[1756774119724,3.38837277,197.82,197.78,13.59559401]
[1756774120034,9.16352047,197.82,197.77,13.59559401]
[1756774120236,5.05514771,197.82,197.78,0.68]
[1756774121058,1e-08,197.82,197.8,13.59559401]
[1756774121364,1e-08,197.82,197.81,14.27559401]
[1756774124953,1e-08,197.82,197.78,0.68]
[1756774125147,1e-08,197.82,197.8,0.68]
[1756774125349,1e-08,197.82,197.81,13.59559401]
[1756774125737,1e-08,197.82,197.81,14.27559401]
[1756774126366,1e-08,197.82,197.81,72.27559401]
[1756774127268,1e-08,197.82,197.81,58.0]
[1756774127565,0.72000001,197.82,197.77,13.59559401]
[1756774127753,0.72000001,197.82,197.77,0.68]
[1756774128359,1e-08,197.82,197.78,0.68]
[1756774129258,5.0551006,197.82,197.78,0.68]
[1756774129762,1e-08,197.82,197.79,0.68]
[1756774130469,0.72,197.81,197.79,58.0]
[1756774130670,1e-08,197.82,197.79,58.0]
[1756774130852,0.72000001,197.82,197.79,58.0]
[1756774131267,5.05535614,197.81,197.79,58.0]
[1756774131460,1e-08,197.82,197.79,58.0]
[1756774131773,1e-08,197.82,197.8,0.68]
[1756774132178,5.05512901,197.82,197.79,58.0]
[1756774132864,0.72,197.81,197.79,58.0]
[1756774133268,1e-08,197.82,197.79,58.0]
[1756774133571,0.72000001,197.82,197.79,58.0]
[1756774134670,5.05535614,197.81,197.79,58.0]
[1756774134860,5.05512741,197.82,197.79,58.0]
[1756774136359,0.72,197.81,197.74,0.8]
[1756774136573,4.11113555,197.81,197.75,13.59559401]
[1756774136766,44.69561172,197.8,197.74,13.71559401]
[1756774137077,0.72,197.79,197.74,0.12]
[1756774137278,4.11247786,197.79,197.74,0.8]
[1756774137463,0.72,197.78,197.74,0.8]
[1756774137664,3.39247786,197.79,197.75,0.68]
[1756774137863,4.11247786,197.79,197.74,0.12]
[1756774138168,5.05612296,197.78,197.74,0.8]
[1756774138757,5.77612296,197.78,197.74,0.12]
[1756774138955,0.72,197.77,197.74,0.12]
[1756774139250,40.36,197.76,197.74,0.12]
[1756774140164,44.6967489,197.76,197.74,0.12]
[1756774140576,0.72,197.75,197.74,0.12]
[1756774142257,9.17408443,197.75,197.74,0.12]
[1756774142955,48.81408443,197.75,197.74,0.12]
[1756774143473,52.76629743,197.75,197.74,0.12]
[1756774143982,29.39719442,197.75,197.74,0.12]
[1756774144158,39.66,197.75,197.74,0.12]
[1756774144479,5.05637862,197.77,197.74,0.12]
[1756774144661,43.07786568,197.76,197.74,0.12]
[1756774144983,39.68,197.76,197.74,0.8]
[1756774145155,4.90732614,197.81,197.75,0.71]
[1756774145358,43.05858255,197.8,197.75,0.71]
[1756774145560,3.39858255,197.79,197.76,0.71]
[1756774145765,3.39858255,197.79,197.76,58.71]
[1756774145966,39.68,197.78,197.76,58.71]
[1756774146182,26.00000001,197.82,197.77,13.59559401]
[1756774146383,3.39909275,197.81,197.77,13.59559401]
[1756774146563,1e-08,197.82,197.77,18.65186542]
[1756774146762,3.39909276,197.82,197.78,0.71]
[1756774146976,3.39909276,197.82,197.79,0.71]
[1756774147680,3.39909276,197.82,197.8,0.71]
[1756774148876,1e-08,197.82,197.81,0.71]
[1756774150879,1e-08,197.82,197.79,0.71]
[1756774151084,1e-08,197.82,197.8,0.71]
[1756774151664,1e-08,197.82,197.81,58.0]
[1756774151904,4.06909276,197.82,197.77,13.59559401]
[1756774152192,0.67,197.81,197.77,13.59559401]
[1756774152591,8.45441087,197.82,197.78,13.59559401]
[1756774152769,3.39909275,197.81,197.78,14.30559401]
[1756774153382,3.39909275,197.81,197.79,0.71]
[1756774153595,1e-08,197.82,197.8,13.59559401]
[1756774154001,1e-08,197.82,197.81,0.71]
[1756774154765,1e-08,197.82,197.81,58.71]
[1756774154965,1e-08,197.82,197.81,77.36095015]
[1756774156386,1e-08,197.82,197.81,83.25894824]
[1756774157910,1e-08,197.82,197.81,77.36095015]
[1756774159524,1e-08,197.82,197.81,72.30559401]
[1756774160582,1e-08,197.82,197.81,77.36095015]
[1756774164918,1e-08,197.82,197.81,116.98095015]
[1756774165088,1e-08,197.82,197.81,122.87894824]
[1756774165293,1e-08,197.82,197.81,145.17894824]
[1756774167023,0.03,197.86,197.84,39.59559401]
[1756774167238,1e-08,197.86,197.85,59.1135921]
[1756774167519,1e-08,197.86,197.85,59.8235921]
[1756774168298,1e-08,197.86,197.85,117.8235921]
[1756774169023,1e-08,197.86,197.85,122.87792619]
[1756774169226,1e-08,197.86,197.85,203.17792619]
[1756774169722,0.1,197.94,197.91,13.59559401]
[1756774170025,0.1,197.94,197.93,13.59559401]
[1756774171423,0.1,197.94,197.93,18.64788522]
[1756774172893,0.1,197.94,197.93,76.64788522]
[1756774173096,0.1,197.94,197.93,81.03871106]
[1756774173326,0.1,197.94,197.93,23.03871106]
[1756774174301,0.1,197.98,197.96,26.0]
[1756774174504,0.1,197.98,197.97,56.87641985]
[1756774174723,0.1,197.98,197.97,53.90559401]
[1756774174929,0.1,197.98,197.97,57.58641985]
[1756774176406,0.1,197.98,197.97,120.63769024]
[1756774178199,0.1,197.98,197.97,116.9568644]
[1756774180704,0.1,197.98,197.97,120.63769024]
[1756774180900,0.1,197.98,197.97,71.59559401]
[1756774181310,0.1,197.98,197.97,116.2468644]
[1756774181509,0.1,197.98,197.97,116.9068644]
[1756774182228,0.1,197.98,197.97,116.2468644]
[1756774182609,0.1,197.98,197.97,71.59559401]
[1756774182829,0.1,197.98,197.97,111.17559401]
[1756774183223,0.1,197.98,197.97,71.59559401]
[1756774183419,0.76,197.98,197.97,111.17559401]
[1756774183616,0.76,197.98,197.97,71.59559401]
[1756774183934,0.76,197.98,197.94,13.59559401]
[1756774184106,0.66,197.97,197.94,13.59559401]
[1756774184302,0.66,197.96,197.93,13.59559401]
[1756774184506,0.66,197.95,197.93,13.59559401]
[1756774184708,5.05130428,197.97,197.93,13.59559401]
[1756774184912,0.66,197.94,197.93,13.59559401]
[1756774185210,0.66,197.94,197.9,13.59559401]
[1756774185417,0.66,197.93,197.91,39.58]
[1756774185625,5.05130428,197.97,197.92,13.59559401]
[1756774185806,5.05130428,197.97,197.87,0.78]
[1756774185807,17.67948026,197.97,197.87,0.12]
[1756774186232,0.66,197.96,197.87,39.7]
[1756774186436,0.66,197.95,197.88,14.25559401]
[1756774186731,5.71183933,197.95,197.9,13.59559401]
[1756774186942,0.66,197.94,197.9,71.59559401]
[1756774187112,0.66,197.93,197.9,71.59559401]
[1756774188129,5.05188999,197.95,197.9,71.59559401]
[1756774188308,0.66,197.92,197.9,71.59559401]
[1756774189418,5.05127039,197.97,197.9,71.59559401]
[1756774189732,0.66,197.94,197.9,76.648638]
[1756774189929,0.66,197.94,197.9,71.59559401]
[1756774190131,0.66,197.93,197.9,71.59559401]
[1756774190529,0.66,197.92,197.9,111.17559401]
[1756774190832,0.66,197.92,197.9,71.59559401]
[1756774191914,0.66,197.91,197.9,58.0]
[1756774193022,5.71280177,197.91,197.9,58.0]